bitfinex-derivatives/quotes_SOLF0:USTF0_20260308
["timestamp","ask_amount","ask_price","bid_price","bid_amount"]
[1772978249367,34.45928978,82.123,82.069,10.966]
[1772978251870,34.45930562,82.121,82.069,10.966]
[1772978254561,34.45930562,82.121,82.076,10.965]
[1772978255368,34.45930562,82.121,82.051,474.93264288]
[1772978255369,34.45821136,82.119,82.051,474.93264288]
[1772978256372,34.45821136,82.117,82.051,474.93264288]
[1772978257571,34.45821136,82.117,82.072,10.966]
[1772978258978,34.45821136,82.117,82.064,10.967]
[1772978259770,34.45541702,82.113,82.064,10.967]
[1772978264873,34.45541702,82.113,82.07,10.966]
[1772978266678,34.45541702,82.113,82.06,10.968]
[1772978266982,34.46587571,82.111,82.06,10.968]
[1772978268179,34.46587571,82.111,82.051,474.93264288]
[1772978269786,34.46587571,82.111,82.075,10.966]
[1772978270984,34.46587571,82.111,82.051,474.93264288]
[1772978272978,34.46587571,82.111,82.066,10.967]
[1772978274186,34.47366148,82.124,82.074,10.966]
[1772978274484,34.47366148,82.122,82.074,10.966]
[1772978274687,34.47209848,82.12,82.074,10.966]
[1772978275588,34.47030598,82.118,82.074,10.966]
[1772978276985,34.46723893,82.116,82.074,10.966]
[1772978277185,34.46723893,82.114,82.074,10.966]
[1772978279182,9.57979241,82.113,82.074,10.966]
[1772978279381,34.46130527,82.112,82.074,10.966]
[1772978281385,45.42230527,82.112,82.067,10.967]
[1772978281585,34.45241608,82.11,82.067,10.967]
[1772978283784,34.44488352,82.108,82.067,10.967]
[1772978285288,34.46050859,82.106,82.067,10.967]
[1772978285492,34.46050859,82.106,82.059,10.968]
[1772978286190,34.45818259,82.104,82.059,10.968]
[1772978286789,34.4550827,82.102,82.059,10.968]
[1772978289288,20.7033303,82.101,82.051,485.90164288]
[1772978289492,44.22451093,82.1,82.051,474.93264288]
[1772978289692,44.22451093,82.099,82.051,474.93264288]
[1772978289992,9.7413303,82.098,82.051,474.93264288]
[1772978290193,34.48318063,82.099,82.051,474.93264288]
[1772978290396,9.74109843,82.098,82.051,474.93264288]
[1772978290592,34.48318063,82.099,82.051,474.93264288]
[1772978290793,9.74109779,82.098,82.057,10.968]
[1772978290993,34.48318063,82.099,82.057,10.968]
[1772978291294,9.74109826,82.098,82.057,10.968]
[1772978291495,34.48318063,82.099,82.057,10.968]
[1772978291690,9.74088119,82.098,82.057,10.968]
[1772978291891,34.48318063,82.099,82.057,10.968]
[1772978292091,9.74088119,82.098,82.057,10.968]
[1772978292290,34.48318063,82.099,82.057,10.968]
[1772978292490,9.74068062,82.098,82.057,10.968]
[1772978292690,34.48318063,82.099,82.057,10.968]
[1772978292990,9.74068062,82.098,82.057,10.968]
[1772978293190,34.48318063,82.099,82.057,10.968]
[1772978293386,9.74049796,82.098,82.057,10.968]
[1772978293590,34.48318063,82.099,82.057,10.968]
[1772978296789,34.48318063,82.099,82.051,474.93264288]
[1772978296995,34.4941268,82.092,82.014,300.56085626]
[1772978297194,34.4941268,82.079,82.014,300.56085626]
[1772978297397,34.4928437,82.077,82.014,300.56085626]
[1772978297597,34.4928437,82.075,82.014,300.56085626]
[1772978297794,34.4928437,82.073,82.023,10.972]
[1772978297995,34.4928437,82.071,82.023,10.972]
[1772978298293,34.4928437,82.069,82.023,10.972]
[1772978298488,34.4928437,82.069,81.989,478.90233822]
[1772978298489,45.85027953,82.067,81.989,478.90233822]
[1772978298695,34.52264533,82.065,81.989,478.90233822]
[1772978298895,34.52264533,82.063,81.989,478.90233822]
[1772978299098,34.52264533,82.061,81.989,478.90233822]
[1772978299288,34.52264533,82.059,81.989,478.90233822]
[1772978299493,34.52166276,82.057,81.989,478.90233822]
[1772978299694,34.52166276,82.055,82.008,10.974]
[1772978299899,34.52166276,82.053,82.008,10.974]
[1772978308401,34.52166276,82.053,82.016,10.973]
[1772978308804,34.52166276,82.053,81.989,478.90233822]
[1772978309004,34.54569699,82.084,81.989,478.90233822]
[1772978309403,320.34066682,82.098,81.989,478.90233822]
[1772978309404,320.34066682,82.098,82.063,10.967]
[1772978309608,10.96,82.121,82.063,10.967]
[1772978310112,10.96,82.121,82.072,10.966]
[1772978310711,10.96,82.121,82.064,10.967]
[1772978311408,25.35899021,82.111,82.064,10.967]
[1772978312010,25.35899021,82.108,82.046,10.969]
[1772978312216,25.35899021,82.108,82.019,21.947]
[1772978312912,177.0,82.16,82.0,62.0]
[1772978312913,25.46229989,82.106,82.0,62.0]
[1772978313115,25.46229989,82.104,82.0,62.0]
[1772978313317,25.46229989,82.102,82.0,62.0]
[1772978313515,25.46233103,82.1,82.0,62.0]
[1772978313814,25.46233103,82.095,82.036,10.971]
[1772978314010,25.46233103,82.093,82.036,10.971]
[1772978315115,25.48052663,82.09,82.036,10.971]
[1772978315919,25.48067467,82.088,82.027,10.972]
[1772978316120,25.48067467,82.088,81.993,21.954]
[1772978316514,10.964,82.087,81.993,21.954]
[1772978316720,25.40215345,82.086,82.029,10.972]
[1772978317518,25.40174332,82.082,82.029,10.972]
[1772978318923,25.40842027,82.073,82.021,10.973]
[1772978319328,25.40806775,82.071,82.021,10.973]
[1772978320722,25.40806775,82.071,81.989,478.90233822]
[1772978320915,25.40992737,82.069,82.013,10.974]
[1772978321120,25.40992737,82.069,81.989,478.90233822]
[1772978321826,25.40992737,82.069,82.012,10.974]
[1772978322328,25.40992737,82.069,81.989,478.90233822]
[1772978323027,25.39651197,82.068,82.019,10.973]
[1772978324722,25.39162896,82.067,82.011,10.974]
[1772978325938,25.39121165,82.064,82.011,10.974]
[1772978327835,25.38973155,82.057,82.011,10.974]
[1772978340545,25.38973155,82.057,82.019,10.973]
[1772978341245,25.36339599,82.074,81.97,62.0]
[1772978341446,25.36294466,82.072,81.97,62.0]
[1772978341643,25.36294466,82.07,81.971,12.19]
[1772978342442,25.36294466,82.07,81.971,42.32738532]
[1772978342646,25.36294466,82.07,81.993,21.954]
[1772978343743,25.36294466,82.07,82.03,10.972]
[1772978344651,25.39508214,82.102,81.986,12.19]
[1772978344842,25.39508214,82.092,81.985,12.19]
[1772978345043,25.39508214,82.09,81.988,30.13738532]
[1772978345238,25.39508214,82.09,82.002,21.951]
[1772978346849,25.39508214,82.09,82.04,10.97]
[1772978347745,25.39508214,82.09,82.048,10.969]
[1772978347950,25.39508214,82.09,81.985,42.32738532]
[1772978348352,25.39508214,82.09,82.05,10.969]
[1772978349744,25.39508214,82.09,82.043,10.97]
[1772978350252,204.21575582,82.129,82.039,10.97]
[1772978350253,25.40743308,82.084,82.039,10.97]
[1772978354847,25.40743308,82.084,82.046,10.969]
[1772978355247,25.40743308,82.084,81.982,12.19]
[1772978355450,25.40743308,82.084,81.984,12.19]
[1772978356858,25.40743308,82.084,81.983,177.0]
[1772978356859,25.40743308,82.084,82.052,10.969]
[1772978361564,25.40743308,82.084,81.984,30.13738532]
[1772978361762,21.919,82.124,81.978,12.19]
[1772978361763,25.3298773,82.082,81.978,12.19]
[1772978361962,25.3298773,82.08,82.044,10.97]
[1772978366564,25.38162107,82.099,81.998,12.19]
[1772978367666,25.38162107,82.099,82.049,10.969]
[1772978368568,25.38162107,82.099,82.056,10.968]
[1772978369969,25.38162107,82.099,82.047,10.969]
[1772978370168,25.39401945,82.097,81.994,12.19]
[1772978370369,25.39401945,82.095,81.994,12.19]
[1772978370565,25.39387262,82.093,81.994,12.19]
[1772978370960,25.39387262,82.093,81.987,30.13738532]
[1772978370961,25.39387262,82.091,81.995,21.953]
[1772978371160,25.39387262,82.091,82.039,10.97]
[1772978373966,25.39650694,82.089,82.039,10.97]
[1772978375175,25.39793713,82.087,82.039,10.97]
[1772978375574,25.39793713,82.087,81.996,21.953]
[1772978375575,25.39779071,82.085,81.996,21.953]
[1772978375772,25.39779071,82.083,81.996,21.953]
[1772978375973,25.39779071,82.081,81.996,21.953]
[1772978376174,25.39779071,82.079,81.996,21.953]
[1772978376778,25.39779071,82.079,82.035,10.971]
[1772978376979,25.40179876,82.077,82.035,10.971]
[1772978377380,25.40179876,82.077,82.042,10.97]
[1772978378875,25.40654779,82.097,81.993,12.19]
[1772978379070,25.40654779,82.095,81.993,12.19]
[1772978379276,25.40654779,82.093,81.993,12.19]
[1772978379474,25.40642904,82.091,81.993,12.19]
[1772978379777,25.40642904,82.091,82.05,10.969]
[1772978380782,25.39571088,82.089,82.05,10.969]
[1772978383184,25.38964395,82.087,82.05,10.969]
[1772978384278,25.38949607,82.085,82.05,10.969]
[1772978384478,25.35901955,82.083,82.05,10.969]
[1772978386278,22.43999506,82.124,81.971,214.92725096]
[1772978386279,25.35881218,82.098,82.073,10.966]
[1772978386478,25.35881218,82.098,82.005,12.19]
[1772978386776,25.35881218,82.098,82.007,42.32738532]
[1772978386978,25.35881218,82.098,82.007,12.19]
[1772978387185,25.35881218,82.098,82.007,42.32738532]
[1772978387780,25.35881218,82.098,82.063,10.967]
[1772978389581,25.35881218,82.098,82.0,30.13738532]
[1772978389886,25.36304372,82.095,81.988,30.13738532]
[1772978390286,25.36304372,82.095,81.987,30.13738532]
[1772978390884,25.36304372,82.095,82.04,10.97]
[1772978391182,25.36304372,82.095,81.987,42.32738532]
[1772978391386,25.36304372,82.095,82.004,21.951]
[1772978391789,25.36088206,82.086,81.978,30.13738532]
[1772978391980,25.36088206,82.068,81.98,21.957]
[1772978392889,25.33739876,82.066,81.999,10.976]
[1772978393189,25.33739876,82.066,81.965,12.20782706]
[1772978393390,25.33717385,82.065,82.007,10.975]
[1772978396090,25.33717385,82.065,82.016,10.973]
[1772978398294,25.46282417,82.063,82.016,10.973]
[1772978398493,25.46282417,82.061,82.016,10.973]
[1772978398893,25.46282417,82.061,82.001,10.975]
[1772978400483,25.46282417,82.061,82.009,10.974]
[1772978403490,25.40313757,82.059,82.0,10.976]
[1772978404889,25.49563174,82.057,82.0,10.976]
[1772978406594,25.49563174,82.057,82.007,10.975]
[1772978407497,25.49502348,82.046,81.992,10.977]
[1772978408999,25.48860644,82.043,81.992,10.977]
[1772978409991,25.48860644,82.043,81.999,10.976]
[1772978412400,25.48860644,82.043,82.006,10.975]
[1772978415403,25.48860644,82.043,82.013,10.974]
[1772978416804,25.48860644,82.043,81.97,21.96]
[1772978417500,25.48860644,82.043,81.991,10.977]
[1772978425008,25.64438395,82.041,81.991,10.977]
[1772978425707,25.64438395,82.041,81.954,21.964]
[1772978425912,25.64438395,82.041,81.953,12.34976144]
[1772978426104,25.64438395,82.041,81.925,219.32738532]
[1772978426303,25.64438395,82.041,81.927,12.19]
[1772978426512,25.64438395,82.041,81.927,42.32738532]
[1772978426708,25.64438395,82.041,81.956,21.964]
[1772978428014,25.64438395,82.041,81.996,10.976]
[1772978430313,25.64438395,82.041,82.004,10.975]
[1772978430618,25.64438395,82.041,81.953,12.178486]
[1772978430619,25.64438395,82.041,81.954,12.19]
[1772978431014,25.64438395,82.041,81.969,21.96]
[1772978432913,25.64438395,82.041,82.009,10.974]
[1772978433422,25.5815363,82.069,81.955,177.0]
[1772978433615,25.5815363,82.067,81.954,207.13738532]
[1772978433918,10.05222375,82.068,81.954,207.13738532]
[1772978433919,25.5815363,82.065,81.955,42.32738532]
[1772978434119,25.5815363,82.063,81.955,42.32738532]
[1772978434321,25.5815363,82.061,81.96,12.19]
[1772978434522,25.58096082,82.059,81.96,12.19]
[1772978434722,25.58096082,82.057,81.96,12.19]
[1772978434922,25.58096082,82.057,81.964,12.19]
[1772978435325,25.58096082,82.057,81.985,21.956]
[1772978435821,25.58096082,82.057,82.02,10.973]
[1772978436522,25.58096082,82.057,82.027,10.972]
[1772978439224,25.58096082,82.057,82.034,10.971]
[1772978439528,25.60669616,82.084,81.983,30.13738532]
[1772978439827,25.60669616,82.084,81.962,12.19]
[1772978439828,25.60669616,82.096,82.002,30.13738532]
[1772978440023,25.60669616,82.096,82.006,30.13738532]
[1772978440322,25.60669616,82.096,82.002,30.13738532]
[1772978440621,25.60669616,82.096,82.059,10.968]
[1772978440818,25.60669616,82.096,82.023,21.946]
[1772978441020,25.63099031,82.094,82.002,21.951]
[1772978441223,25.63099031,82.092,82.002,21.951]
[1772978441422,25.63099031,82.09,82.002,21.951]
[1772978441729,25.6311529,82.088,82.002,21.951]
[1772978441928,25.6311529,82.086,82.002,21.951]
[1772978442127,25.6311529,82.084,82.002,21.951]
[1772978442324,25.6311529,82.082,82.002,21.951]
[1772978442523,25.6311529,82.082,82.038,10.971]
[1772978443029,25.6311529,82.082,82.0,62.0]
[1772978443227,25.66538546,82.08,81.978,21.957]
[1772978443427,25.66538546,82.078,81.978,21.957]
[1772978444230,25.66538546,82.078,81.975,30.13738532]
[1772978444926,25.66538546,82.078,82.025,10.972]
[1772978446128,25.66538546,82.078,82.032,10.971]
[1772978447835,25.66538546,82.078,82.039,10.97]
[1772978449329,25.66538546,82.078,81.99,62.0]
[1772978449330,25.66538546,82.078,82.046,10.969]
[1772978452036,25.66538546,82.078,82.038,10.97]
[1772978452538,25.66538546,82.078,81.99,62.0]
[1772978452837,25.66538546,82.078,81.991,12.19]
[1772978453536,25.66538546,82.078,82.048,10.969]
[1772978454138,25.66538546,82.078,82.054,10.968]
[1772978454337,25.66538546,82.078,82.012,21.948]
[1772978455434,25.66538546,82.078,82.045,10.97]
[1772978455940,25.8431528,82.114,82.057,10.968]
[1772978456131,25.8431528,82.114,81.99,62.0]
[1772978456132,25.8431528,82.112,81.993,12.19]
[1772978456438,25.8431528,82.11,81.993,12.19]
[1772978456641,25.81926314,82.108,82.015,21.948]
[1772978456842,25.81926314,82.106,82.015,21.948]
[1772978457840,25.81926314,82.106,82.054,10.968]
[1772978459039,25.81926314,82.106,81.99,62.0]
[1772978459040,25.81926314,82.106,82.029,21.944]
[1772978460945,25.81926314,82.106,82.006,21.95]
[1772978461943,25.81926314,82.106,81.991,12.19]
[1772978462249,25.82056179,82.104,81.991,12.19]
[1772978462445,25.82056179,82.102,81.991,12.19]
[1772978463748,25.82056179,82.102,82.048,10.969]
[1772978464245,25.82056179,82.102,81.99,62.0]
[1772978464454,25.82056179,82.102,81.991,177.0]
[1772978464654,25.82056179,82.102,82.062,10.967]
[1772978465946,25.82056179,82.102,82.069,10.966]
[1772978467351,25.82056179,82.102,82.025,21.945]
[1772978467860,25.82056179,82.102,81.975,30.13738532]
[1772978468253,25.82056179,82.102,81.976,30.13738532]
[1772978468654,25.82056179,82.102,81.977,12.19]
[1772978468854,25.82056179,82.102,82.047,10.969]
[1772978469553,20.4139935,82.1,82.038,10.97]
[1772978469753,22.43999506,82.14,82.038,10.97]
[1772978469754,20.4139935,82.098,82.038,10.97]
[1772978469951,20.4139935,82.096,81.972,12.19]
[1772978470151,20.4139935,82.094,81.972,12.19]
[1772978470355,20.4139935,82.092,81.972,12.19]
[1772978470555,20.61656778,82.09,81.972,12.19]
[1772978470760,20.61656778,82.086,82.031,10.971]
[1772978470961,20.61656778,82.084,82.031,10.971]
[1772978471157,20.61656778,82.082,82.031,10.971]
[1772978471460,20.61656778,82.08,82.022,10.973]
[1772978471661,20.61723831,82.078,82.022,10.973]
[1772978471956,20.61723831,82.076,82.022,10.973]
[1772978472163,20.61723831,82.074,82.022,10.973]
[1772978473359,20.61723831,82.074,82.03,10.972]
[1772978473961,20.61723831,82.074,81.97,62.0]
[1772978474152,20.6336548,82.097,81.979,30.13738532]
[1772978474351,20.6336548,82.097,81.97,62.0]
[1772978474352,20.6336548,82.097,81.98,207.13738532]
[1772978474554,20.61180858,82.124,81.994,30.13738532]
[1772978474755,20.61180858,82.124,81.971,170.799]
[1772978474756,20.61180858,82.122,81.996,30.13738532]
[1772978474953,20.61180858,82.12,81.996,30.13738532]
[1772978475156,194.9,82.145,82.029,21.944]
[1772978475157,20.61180858,82.118,82.029,21.944]
[1772978475353,20.61243929,82.116,82.029,21.944]
[1772978475558,20.61243929,82.114,82.029,21.944]
[1772978475757,20.61243929,82.114,82.062,10.967]
[1772978478667,9.88524055,82.113,82.062,10.967]
[1772978478867,20.61911375,82.112,82.062,10.967]
[1772978481964,20.61926621,82.11,82.062,10.967]
[1772978482170,20.61926621,82.108,82.062,10.967]
[1772978482365,20.61926621,82.106,82.062,10.967]
[1772978482866,20.61926621,82.106,82.054,10.968]
[1772978483562,20.61926621,82.106,82.043,10.97]
[1772978483768,20.61611283,82.104,82.043,10.97]
[1772978484170,20.61611283,82.102,82.043,10.97]
[1772978489671,20.41167882,82.099,82.043,10.97]
[1772978490971,20.35651426,82.096,82.043,10.97]
[1772978492175,20.35651426,82.096,82.01,62.0]
[1772978492176,20.35682283,82.12,82.01,62.0]
[1772978492476,20.35682283,82.118,82.016,30.13738532]
[1772978492771,20.22135025,82.112,82.019,21.947]
[1772978493770,20.22135025,82.112,82.059,10.968]
[1772978494172,20.22135025,82.112,82.011,12.19]
[1772978494379,20.22135025,82.112,82.073,10.966]
[1772978494677,20.22135025,82.112,82.015,30.13738532]
[1772978494877,20.22135025,82.112,82.026,21.945]
[1772978495879,20.22135025,82.112,82.064,10.967]
[1772978499485,20.22135025,82.112,82.072,10.966]
[1772978500984,20.22135025,82.112,82.028,21.944]
[1772978501278,14.65154158,82.11,82.028,21.944]
[1772978501484,14.65172093,82.108,82.028,21.944]
[1772978501678,14.65172093,82.106,82.028,21.944]
[1772978502282,14.65172093,82.106,82.01,62.0]
[1772978502283,14.65172093,82.106,82.032,21.943]
[1772978502884,14.65172093,82.106,82.075,10.966]
[1772978507392,14.65172093,82.106,82.032,21.943]
[1772978508091,14.65172093,82.106,82.067,10.967]
[1772978508590,14.79103978,82.104,82.067,10.967]
[1772978508790,14.79103978,82.104,82.057,10.968]
[1772978508986,14.79103978,82.104,82.01,62.0]
[1772978509187,9.94446167,82.103,82.01,62.0]
[1772978509391,14.79103978,82.104,82.01,62.0]
[1772978509687,14.79134302,82.102,82.01,62.0]
[1772978509994,14.79134302,82.102,82.011,12.19]
[1772978510491,14.89623073,82.093,81.996,30.13738532]
[1772978510692,14.89623073,82.091,81.967,30.13738532]
[1772978510994,11.34672198,82.073,81.953,12.178486]
[1772978511194,11.34672198,82.073,81.921,177.0]
[1772978511195,14.89623073,82.071,81.944,30.13738532]
[1772978511389,14.89663375,82.058,81.985,10.978]
[1772978511589,14.89663375,82.056,81.985,10.978]
[1772978512383,14.89663375,82.056,81.993,10.977]
[1772978514088,14.89663375,82.056,81.96,62.0]
[1772978514089,14.89663375,82.056,81.984,10.978]
[1772978515492,14.89663375,82.056,81.993,10.977]
[1772978515693,14.89663375,82.056,81.96,62.0]
[1772978515694,14.89663375,82.056,81.962,21.962]
[1772978516897,14.89663375,82.056,82.003,10.975]
[1772978517895,14.89663375,82.056,82.011,10.974]
[1772978518096,14.89663375,82.056,81.96,62.0]
[1772978518497,14.89663375,82.056,81.971,21.959]
[1772978519189,14.89663375,82.056,81.982,21.957]
[1772978520389,15.00558703,82.086,82.035,10.971]
[1772978521588,15.00603319,82.084,81.983,21.956]
[1772978521896,15.00603319,82.082,81.983,21.956]
[1772978522200,15.00603319,82.075,81.96,62.0]
[1772978522400,15.00603319,82.073,81.96,62.0]
[1772978522696,15.01130845,82.071,81.96,62.0]
[1772978522894,15.01130845,82.069,81.96,62.0]
[1772978523095,11.31849302,82.074,81.96,62.0]
[1772978523096,15.01130845,82.067,81.96,62.0]
[1772978523296,15.01130845,82.065,81.96,62.0]
[1772978523593,15.01248608,82.055,81.96,62.0]
[1772978524393,15.01248608,82.055,81.988,10.977]
[1772978524594,15.01248608,82.055,81.963,21.962]
[1772978525798,15.01248608,82.055,81.995,10.976]
[1772978526391,15.01248608,82.055,81.986,10.977]
[1772978527794,11.31849302,82.078,81.986,10.977]
[1772978527795,15.00830055,82.051,81.986,10.977]
[1772978528895,15.1921862,82.047,81.986,10.977]
[1772978529401,15.1921862,82.034,81.897,30.13738532]
[1772978529601,15.1921862,82.034,81.901,30.13738532]
[1772978529799,15.19272667,82.032,81.897,30.13738532]
[1772978530098,15.19272667,82.032,81.923,12.19]
[1772978530602,15.19272667,82.032,81.955,10.982]
[1772978531199,15.19272667,82.032,81.963,10.981]
[1772978533609,15.20140726,82.03,81.963,10.981]
[1772978534010,10.972,82.028,81.963,10.981]
[1772978534208,15.20140726,82.027,81.963,10.981]
[1772978535310,15.20140726,82.027,81.94,62.0]
[1772978536401,15.20140726,82.027,81.961,10.981]
[1772978536806,15.23321352,82.017,81.944,10.983]
[1772978537907,15.23374148,82.013,81.944,10.983]
[1772978538612,15.23374148,82.013,81.951,10.982]
[1772978538908,15.23374148,82.013,81.906,21.977]
[1772978539113,15.22280894,82.001,81.928,10.985]
[1772978539314,15.22280894,82.001,81.884,21.983]
[1772978539511,10.976,81.999,81.9,62.0]
[1772978539711,15.22332247,81.998,81.934,10.984]
[1772978540411,15.17236744,81.996,81.924,10.986]
[1772978541502,15.17236744,81.996,81.868,12.19]
[1772978541503,11.27691282,82.054,81.895,5.8378897]
[1772978541815,12.21483156,82.056,81.895,5.8378897]
[1772978542013,10.971,82.038,81.944,5.8378897]
[1772978543213,9.90884159,82.068,81.966,16.97332316]
[1772978543510,9.62433306,82.065,81.966,5.99332316]
[1772978543716,9.62433306,82.063,81.966,5.99332316]
[1772978544009,9.62433306,82.061,81.966,5.99332316]
[1772978544213,9.62433306,82.059,81.966,5.99332316]
[1772978544414,9.62433306,82.057,81.966,5.99332316]
[1772978544611,9.62433306,82.055,81.966,5.99332316]
[1772978544813,9.62433306,82.028,81.966,5.99332316]
[1772978545811,9.62433306,82.024,81.966,5.99332316]
[1772978546911,9.62433306,82.018,81.966,5.99332316]
[1772978547502,9.62433306,82.015,81.966,5.99332316]
[1772978547809,9.62433306,82.015,81.952,6.15763667]
[1772978548708,9.62433306,82.01,81.962,6.0512641]
[1772978549914,9.62433306,82.01,81.967,10.98]
[1772978550209,20.59933306,82.005,81.962,6.0512641]
[1772978550916,20.59933306,82.005,81.964,6.10742177]
[1772978551415,9.62433306,82.005,81.964,6.10742177]
[1772978551609,9.62433306,82.005,81.93,62.0]
[1772978551610,9.62433306,82.019,81.967,6.12913089]
[1772978552814,9.62433306,82.019,81.973,10.979]
[1772978556017,9.62433306,82.019,81.919,21.973]
[1772978556018,9.61224548,82.011,81.931,6.14974724]
[1772978556214,9.61224548,82.009,81.931,6.14974724]
[1772978556418,9.61224548,82.007,81.931,6.14974724]
[1772978556613,9.61224548,82.005,81.931,6.14974724]
[1772978556814,9.98461914,82.004,81.931,6.14974724]
[1772978557015,9.61224548,82.005,81.896,21.98]
[1772978557016,9.61224548,81.986,81.94,5.98951191]
[1772978558322,9.61224548,81.984,81.932,10.985]
[1772978558523,9.61224548,81.984,81.926,6.02988328]
[1772978559221,9.61224548,81.984,81.937,6.01736371]
[1772978560719,9.61224548,81.982,81.929,6.09934264]
[1772978562716,11.27489637,82.003,81.929,6.09934264]
[1772978562717,9.61224548,81.978,81.929,6.09934264]
[1772978562918,9.61224548,81.978,81.912,5.86090579]
[1772978563221,21.946,82.023,81.799,171.157]
[1772978563222,9.61224548,81.958,81.905,10.988]
[1772978563622,9.61224548,81.958,81.905,5.8791996]
[1772978563816,9.61224548,81.958,81.868,5.8791996]
[1772978564219,9.61224548,81.958,81.906,5.89880388]
[1772978565525,9.61224548,81.958,81.913,5.93103401]
[1772978566926,9.61224548,81.958,81.914,10.987]
[1772978567828,9.61224548,81.973,81.918,6.43046119]
[1772978568023,9.61224548,81.971,81.918,6.43046119]
[1772978569129,9.61224548,81.97,81.919,10.986]
[1772978570620,9.61224548,81.97,81.922,6.21076689]
[1772978571831,9.61224548,81.97,81.924,10.986]
[1772978572230,9.61224548,81.97,81.91,6.24550132]
[1772978573833,9.61224548,81.968,81.913,6.18378843]
[1772978574929,9.61224548,81.968,81.917,6.25352156]
[1772978577230,9.61224548,81.966,81.917,6.25352156]
[1772978580027,9.61224548,81.966,81.92,6.24908015]
[1772978580237,9.61224548,81.987,81.92,6.24908015]
[1772978580428,10.24862913,81.986,81.92,6.24908015]
[1772978580637,9.61224548,81.961,81.896,6.27063923]
[1772978581332,9.61224548,81.961,81.915,6.28671005]
[1772978582728,9.61224548,81.961,81.918,10.987]
[1772978583433,9.61224548,81.961,81.925,10.986]
[1772978583637,9.61224548,81.961,81.873,34.176]
[1772978583638,10.25466457,81.976,81.926,6.53657185]
[1772978584538,10.25466457,81.976,81.934,17.71971773]
[1772978584738,10.25466457,81.976,81.935,6.73571773]
[1772978585842,10.25466457,81.976,81.936,10.984]
[1772978589240,10.25466457,81.976,81.928,10.985]
[1772978595537,10.04592366,81.972,81.919,10.986]
[1772978595737,10.04592366,81.972,81.92,6.91800681]
[1772978596745,10.04592366,81.969,81.923,10.986]
[1772978598248,10.04592366,81.969,81.923,17.94000927]
[1772978599649,10.04592366,81.964,81.923,6.95400927]
[1772978599848,10.04592366,81.964,81.915,10.987]
[1772978600151,10.04592366,81.964,81.912,6.96402341]
[1772978600754,10.04592366,81.964,81.922,17.96482714]
[1772978602252,10.04592366,81.964,81.923,7.00293092]
[1772978602749,10.04592366,81.962,81.913,7.00582217]
[1772978603854,10.04592366,81.962,81.914,10.987]
[1772978605257,10.04592366,81.962,81.914,17.95450321]
[1772978605451,10.04592366,81.962,81.917,10.987]
[1772978605657,10.04592366,81.962,81.915,6.96750321]
[1772978606752,10.04592366,81.962,81.924,10.986]
[1772978607258,10.04592366,81.976,81.925,6.98864523]
[1772978608759,10.04592366,81.994,81.939,7.03512962]
[1772978608955,10.04592366,81.992,81.939,7.03512962]
[1772978609160,10.04592366,81.99,81.939,7.03512962]
[1772978609459,10.04592366,81.988,81.939,7.03512962]
[1772978609660,10.04592366,81.986,81.939,7.03512962]
[1772978609956,10.04592366,81.984,81.938,10.984]
[1772978610155,10.04592366,81.982,81.938,10.984]
[1772978610355,10.04592366,81.979,81.93,10.985]
[1772978610661,10.04592366,81.977,81.93,10.985]
[1772978610962,10.04592366,81.975,81.93,10.985]
[1772978611155,10.04592366,81.973,81.93,10.985]
[1772978611356,10.978,81.98,81.93,10.985]
[1772978611357,10.04592366,81.971,81.93,10.985]
[1772978611557,10.19910041,81.97,81.927,7.04571063]
[1772978611756,10.978,81.98,81.927,7.04571063]
[1772978611757,10.04592366,81.969,81.927,7.04571063]
[1772978616062,10.04592366,81.969,81.929,7.12939471]
[1772978616263,10.37875069,81.981,81.929,7.12939471]
[1772978616459,10.37875069,81.979,81.929,7.12939471]
[1772978616667,10.37875069,81.977,81.929,7.12939471]
[1772978616855,10.37875069,81.975,81.929,7.12939471]